fUST/lending_fUST_20251207
["ID","MTS","AMOUNT","RATE_DAILY","PERIOD"]
[396610681,1765069847872,-500.0,8.493e-05,2]
[396610683,1765069847881,-500.0,8.493e-05,2]
[396610685,1765069847890,-1587.79,8.493e-05,2]
[396610687,1765069847899,-2335.41,8.493e-05,2]
[396610689,1765069847908,-500.0,8.493e-05,2]
[396610691,1765069847916,-500.0,8.493e-05,2]
[396610693,1765069847925,-500.0,8.493e-05,2]
[396610695,1765069847935,-500.0,8.493e-05,2]
[396610697,1765069847944,-500.0,8.493e-05,2]
[396610699,1765069847953,-500.0,8.493e-05,2]
[396610701,1765069847962,-878.45,8.493e-05,2]
[396610703,1765069847971,-500.0,8.493e-05,2]
[396610705,1765069847980,-500.0,8.493e-05,2]
[396610707,1765069847989,-500.0,8.493e-05,2]
[396610709,1765069847998,-515.2,8.493e-05,2]
[396610711,1765069848008,-630.86,8.493e-05,2]
[396610713,1765069848017,-500.0,8.493e-05,2]
[396610715,1765069848026,-780.22,8.493e-05,2]
[396610717,1765069848036,-500.0,8.493e-05,2]
[396610719,1765069848045,-500.0,8.493e-05,2]
[396610721,1765069848054,-500.0,8.493e-05,2]
[396610723,1765069848063,-542.24,8.493e-05,2]
[396610725,1765069848072,-502.66,8.493e-05,2]
[396610727,1765069848081,-500.0,8.493e-05,2]
[396610729,1765069848091,-500.0,8.493e-05,2]
[396610731,1765069848102,-500.0,8.493e-05,2]
[396610733,1765069848111,-500.0,8.493e-05,2]
[396610735,1765069848120,-1026.77,8.493e-05,2]
[396610737,1765069848130,-500.0,8.493e-05,2]
[396610739,1765069848140,-600.02,8.493e-05,2]
[396610741,1765069848149,-500.0,8.493e-05,2]
[396610743,1765069848158,-1454.81,8.493e-05,2]
[396610745,1765069848167,-748.48,8.493e-05,2]
[396610747,1765069848176,-500.0,8.493e-05,2]
[396610749,1765069848185,-500.0,8.493e-05,2]
[396610751,1765069848194,-1294.09,8.493e-05,2]
[396610752,1765069848203,-500.0,8.493e-05,2]
[396610754,1765069848212,-362.68212557,8.493e-05,2]
[396610756,1765069848221,-1604.74,8.493e-05,2]
[396610758,1765069848231,-500.0,8.493e-05,2]
[396610760,1765069848239,-500.0,8.493e-05,2]
[396610762,1765069848249,-500.0,8.493e-05,2]
[396610764,1765069848258,-500.0,8.493e-05,2]
[396610766,1765069848267,-600.9,8.493e-05,2]
[396610768,1765069848276,-1325.1,8.493e-05,2]
[396610770,1765069848285,-11366.65,8.493e-05,2]
[396610772,1765069848299,-500.0,8.493e-05,2]
[396610774,1765069848308,-500.0,8.493e-05,2]
[396610776,1765069848317,-500.0,8.493e-05,2]
[396610778,1765069848327,-500.0,8.493e-05,2]
[396610780,1765069848336,-500.0,8.493e-05,2]
[396610782,1765069848346,-1053.68,8.493e-05,2]
[396610784,1765069848355,-1979.9,8.493e-05,2]
[396610786,1765069848365,-500.0,8.493e-05,2]
[396610788,1765069848374,-500.0,8.493e-05,2]
[396610790,1765069848384,-500.0,8.493e-05,2]
[396610792,1765069848393,-723.74,8.493e-05,2]
[396610794,1765069848403,-500.0,8.493e-05,2]
[396610796,1765069848412,-2847.99,8.493e-05,2]
[396610798,1765069848422,-500.0,8.493e-05,2]
[396610800,1765069848433,-500.0,8.493e-05,2]
[396610802,1765069848444,-507.26,8.493e-05,2]
[396610804,1765069848454,-500.0,8.493e-05,2]
[396610806,1765069848464,-3953.75,8.493e-05,2]
[396610808,1765069848474,-500.0,8.493e-05,2]
[396610810,1765069848483,-633.34,8.493e-05,2]
[396610812,1765069848493,-1471.16,8.493e-05,2]
[396610814,1765069848502,-500.0,8.493e-05,2]
[396610816,1765069848512,-500.0,8.493e-05,2]
[396610818,1765069848522,-500.0,8.493e-05,2]
[396610820,1765069848531,-500.0,8.493e-05,2]
[396610822,1765069848540,-500.0,8.493e-05,2]
[396610824,1765069848550,-7346.87879811,8.493e-05,2]
[396611314,1765070282007,160.0,0.00013014,5]
[396611329,1765070451329,158.0,0.000131,3]
[396611330,1765070456570,162.0,0.000131,3]
[396611332,1765070654018,154.0,0.000131,3]
[396611335,1765070942695,250.0,0.00013108,3]
[396611336,1765070942942,250.0,0.00013013,3]
[396611366,1765071033049,-658.1240155,7.022e-05,2]
[396611367,1765071033059,-452.76070196,7.022e-05,2]
[396611368,1765071033068,-210.0,7.022e-05,2]
[396611369,1765071033077,-390.465,7.369e-05,2]
[396611370,1765071033087,-300.0,7.418e-05,2]
[396611371,1765071033096,-324770.55843131,7.419e-05,2]
[396611399,1765071038464,-1444.79270721,7.419e-05,2]
[396611406,1765071038528,-85393.43287841,7.419e-05,2]
[396611414,1765071038598,-478391.21598307,7.419e-05,2]
[396611416,1765071038608,-419.3252911,7.518e-05,2]
[396611418,1765071038618,-382.23911469,7.518e-05,2]
[396611420,1765071038627,-500.0,7.518e-05,2]
[396611423,1765071038637,-500.0,7.518e-05,2]
[396611424,1765071038647,-289.75652268,7.518e-05,2]
[396611427,1765071038657,-300.0,7.668e-05,2]
[396611429,1765071038667,-300.0,7.668e-05,2]
[396611431,1765071038677,-300.0,7.668e-05,2]
[396611432,1765071038686,-300.0,7.668e-05,2]
[396611434,1765071038696,-300.0,7.668e-05,2]
[396611436,1765071038706,-300.0,7.668e-05,2]
[396611438,1765071038716,-300.0,7.668e-05,2]
[396611441,1765071038726,-300.0,7.668e-05,2]
[396611443,1765071038737,-300.0,7.668e-05,2]
[396611444,1765071038746,-300.0,7.668e-05,2]
[396611446,1765071038756,-300.0,7.668e-05,2]
[396611449,1765071038767,-300.0,7.668e-05,2]
[396611451,1765071038779,-300.0,7.668e-05,2]
[396611453,1765071038788,-300.0,7.668e-05,2]
[396611455,1765071038797,-300.0,7.668e-05,2]
[396611457,1765071038807,-600.0,7.668e-05,2]
[396611459,1765071038816,-2463.80764523,7.668e-05,2]
[396611461,1765071038825,-150.0,7.74e-05,2]
[396611463,1765071038835,-200.03356243,7.912e-05,2]
[396611465,1765071038845,-160.57,8.067e-05,2]
[396611467,1765071038855,-762.91036247,8.075e-05,2]
[396611469,1765071038864,-4335.73295486,8.153e-05,2]
[396611470,1765071038875,-296.29483633,8.153e-05,2]
[396611472,1765071038884,-2230.315306,8.153e-05,2]
[396611474,1765071038894,-631.0,8.16e-05,2]
[396611476,1765071038904,-2155.0,8.16e-05,2]
[396611478,1765071038914,-1359.0,8.16e-05,2]
[396611480,1765071038923,-415.0,8.16e-05,2]
[396611482,1765071038933,-415.0,8.16e-05,2]
[396611484,1765071038942,-420.0,8.16e-05,2]
[396611486,1765071038952,-4496.15507419,8.208e-05,2]
[396611488,1765071038963,-859.76,8.219e-05,2]
[396611491,1765071038973,-500.0,8.219e-05,2]
[396611492,1765071038983,-500.0,8.219e-05,2]
[396611494,1765071038993,-1046.23,8.219e-05,2]
[396611496,1765071039003,-500.63058178,8.219e-05,2]
[396611498,1765071039012,-935.39,8.219e-05,2]
[396611500,1765071039022,-500.0,8.219e-05,2]
[396611502,1765071039032,-500.0,8.219e-05,2]
[396611504,1765071039042,-581.51,8.219e-05,2]
[396611506,1765071039052,-669.02,8.219e-05,2]
[396611508,1765071039062,-902.82,8.219e-05,2]
[396611510,1765071039072,-500.0,8.219e-05,2]
[396611512,1765071039082,-500.0,8.219e-05,2]
[396611515,1765071039092,-500.0,8.219e-05,2]
[396611517,1765071039102,-500.0,8.219e-05,2]
[396611518,1765071039111,-500.0,8.219e-05,2]
[396611521,1765071039121,-736.64,8.219e-05,2]
[396611523,1765071039131,-500.0,8.219e-05,2]
[396611525,1765071039140,-500.0,8.219e-05,2]
[396611526,1765071039149,-500.0,8.219e-05,2]
[396611528,1765071039159,-500.0,8.219e-05,2]
[396611530,1765071039167,-500.0,8.219e-05,2]
[396611532,1765071039177,-500.0,8.219e-05,2]
[396611534,1765071039186,-500.0,8.219e-05,2]
[396611536,1765071039195,-500.0,8.219e-05,2]
[396611538,1765071039204,-500.0,8.219e-05,2]
[396611540,1765071039214,-301.9689207,8.22e-05,2]
[396611542,1765071039224,-300.713563,8.22e-05,2]
[396611544,1765071039233,-343.22960321,8.263e-05,2]
[396611547,1765071039245,-301.9689207,8.27e-05,2]
[396611548,1765071039255,-206.43532335,8.329e-05,2]
[396611550,1765071039265,-371.58358203,8.329e-05,2]
[396611552,1765071039275,-660.59303473,8.329e-05,2]
[396611554,1765071039284,-201.68788641,8.329e-05,2]
[396611556,1765071039293,-363.03819553,8.329e-05,2]
[396611558,1765071039302,-645.4012365,8.329e-05,2]
[396611560,1765071039311,-154.0,8.4e-05,2]
[396611562,1765071039320,-154.0,8.4e-05,2]
[396611564,1765071039329,-240.85,8.433e-05,2]
[396611566,1765071039338,-720.0,8.435e-05,2]
[396611568,1765071039348,-250.0,8.492e-05,2]
[396611570,1765071039356,-1310.8577051,8.493e-05,2]
[396611572,1765071039365,-21211.5833818,8.493e-05,2]
[396611574,1765071039375,-859.76,8.493e-05,2]
[396611576,1765071039384,-500.0,8.493e-05,2]
[396611578,1765071039393,-500.0,8.493e-05,2]
[396611580,1765071039402,-1046.23,8.493e-05,2]
[396611582,1765071039412,-935.39,8.493e-05,2]
[396611584,1765071039421,-500.0,8.493e-05,2]
[396611586,1765071039430,-500.0,8.493e-05,2]
[396611588,1765071039439,-581.51,8.493e-05,2]
[396611590,1765071039450,-669.02,8.493e-05,2]
[396611592,1765071039459,-902.82,8.493e-05,2]
[396611594,1765071039468,-500.0,8.493e-05,2]
[396611596,1765071039477,-500.0,8.493e-05,2]
[396611598,1765071039486,-500.0,8.493e-05,2]
[396611600,1765071039496,-500.0,8.493e-05,2]
[396611602,1765071039504,-500.0,8.493e-05,2]
[396611604,1765071039514,-736.64,8.493e-05,2]
[396611606,1765071039523,-500.0,8.493e-05,2]
[396611608,1765071039532,-500.0,8.493e-05,2]
[396611610,1765071039541,-500.0,8.493e-05,2]
[396611612,1765071039550,-500.0,8.493e-05,2]
[396611614,1765071039559,-500.0,8.493e-05,2]
[396611616,1765071039568,-500.0,8.493e-05,2]
[396611617,1765071039577,-500.0,8.493e-05,2]
[396611619,1765071039587,-212.00467272,8.493e-05,2]
[396611621,1765071039596,-3747.8399901,8.493e-05,2]
[396611623,1765071039605,-362.3297984,8.493e-05,2]
[396611626,1765071039615,-500.0,8.493e-05,2]
[396611628,1765071039625,-500.0,8.493e-05,2]
[396611629,1765071039634,-154.0,8.5e-05,2]
[396611631,1765071039643,-154.0,8.5e-05,2]
[396611633,1765071039653,-730.99788594,8.526e-05,2]
[396611635,1765071039662,-3873.59041771,8.531e-05,2]
[396611637,1765071039671,-762.91036247,8.56e-05,2]
[396611639,1765071039681,-5276.5189807,8.667e-05,2]
[396611641,1765071039690,-151.0,8.668e-05,2]
[396611643,1765071039700,-151.0,8.668e-05,2]
[396611645,1765071039709,-151.0,8.668e-05,2]
[396611647,1765071039718,-500.0,8.668e-05,2]
[396611649,1765071039727,-151.0,8.668e-05,2]
[396611651,1765071039738,-500.0,8.668e-05,2]
[396611653,1765071039748,-151.0,8.668e-05,2]
[396611655,1765071039757,-500.0,8.668e-05,2]
[396611657,1765071039767,-151.0,8.668e-05,2]
[396611659,1765071039777,-151.0,8.668e-05,2]
[396611661,1765071039786,-151.0,8.668e-05,2]
[396611663,1765071039796,-151.0,8.668e-05,2]
[396611665,1765071039805,-151.0,8.668e-05,2]
[396611667,1765071039815,-500.0,8.668e-05,2]
[396611669,1765071039825,-500.0,8.668e-05,2]
[396611671,1765071039834,-151.0,8.668e-05,2]
[396611673,1765071039844,-2312.83697232,8.701e-05,2]
[396611675,1765071039854,-150.0,8.702e-05,2]
[396611677,1765071039863,-150.0,8.702e-05,2]
[396611679,1765071039873,-150.0,8.702e-05,2]
[396611681,1765071039883,-150.0,8.702e-05,2]
[396611683,1765071039892,-170.0,8.702e-05,2]
[396611685,1765071039901,-859.76,8.767e-05,2]
[396611687,1765071039910,-500.0,8.767e-05,2]
[396611689,1765071039919,-1046.23,8.767e-05,2]
[396611691,1765071039931,-935.39,8.767e-05,2]
[396611693,1765071039940,-500.0,8.767e-05,2]
[396611695,1765071039950,-500.0,8.767e-05,2]
[396611697,1765071039959,-581.51,8.767e-05,2]
[396611699,1765071039970,-669.02,8.767e-05,2]
[396611701,1765071039980,-902.82,8.767e-05,2]
[396611703,1765071039989,-500.0,8.767e-05,2]
[396611705,1765071040007,-500.0,8.767e-05,2]
[396611707,1765071040022,-500.0,8.767e-05,2]
[396611709,1765071040031,-500.0,8.767e-05,2]
[396611711,1765071040040,-500.0,8.767e-05,2]
[396611713,1765071040050,-736.64,8.767e-05,2]
[396611715,1765071040059,-409.6740599,8.767e-05,2]
[396611717,1765071040069,-500.0,8.767e-05,2]
[396611719,1765071040078,-500.0,8.767e-05,2]
[396611721,1765071040087,-500.0,8.767e-05,2]
[396611723,1765071040096,-506.45186264,8.767e-05,2]
[396611725,1765071040106,-500.0,8.767e-05,2]
[396611727,1765071040115,-632.7531914,8.767e-05,2]
[396611729,1765071040124,-201.4985902,8.767e-05,2]
[396611731,1765071040133,-362.33476489,8.767e-05,2]
[396611733,1765071040142,-500.0,8.767e-05,2]
[396611735,1765071040151,-500.0,8.767e-05,2]
[396611736,1765071040160,-915.43793002,8.794e-05,2]
[396611739,1765071040169,-154.0,8.8e-05,2]
[396611741,1765071040179,-162.87774471,8.8e-05,2]
[396611743,1765071040189,-321.14,8.8e-05,2]
[396611745,1765071040199,-151.0,8.805e-05,2]
[396611747,1765071040210,-195.98370361,8.805e-05,2]
[396611749,1765071040219,-155.52482779,8.805e-05,2]
[396611751,1765071040228,-562.64342184,8.805e-05,2]
[396611752,1765071040238,-500.0,8.805e-05,2]
[396611754,1765071040247,-151.0,8.805e-05,2]
[396611756,1765071040256,-500.0,8.805e-05,2]
[396611758,1765071040266,-151.0,8.805e-05,2]
[396611760,1765071040276,-151.0,8.805e-05,2]
[396611762,1765071040285,-151.0,8.805e-05,2]
[396611764,1765071040295,-173.63747113,8.805e-05,2]
[396611766,1765071040304,-500.0,8.805e-05,2]
[396611768,1765071040313,-500.0,8.805e-05,2]
[396611770,1765071040322,-297.37588965,8.942e-05,2]
[396611772,1765071040331,-500.0,8.942e-05,2]
[396611774,1765071040340,-283.99019839,8.942e-05,2]
[396611776,1765071040350,-351.34211215,8.942e-05,2]
[396611778,1765071040360,-151.0,8.942e-05,2]
[396611780,1765071040370,-151.0,8.942e-05,2]
[396611782,1765071040379,-204.26607949,8.942e-05,2]
[396611784,1765071040388,-500.0,8.942e-05,2]
[396611786,1765071040397,-500.0,8.942e-05,2]
[396611788,1765071040406,-587.0,8.976e-05,2]
[396611790,1765071040415,-500.0,9e-05,2]
[396611792,1765071040425,-3661.45358681,9e-05,2]
[396611794,1765071040434,-534.25762832,9.022e-05,2]
[396611796,1765071040444,-859.76,9.041e-05,2]
[396611798,1765071040452,-492.63873866,9.041e-05,2]
[396611800,1765071040461,-1046.23,9.041e-05,2]
[396611802,1765071040472,-935.39,9.041e-05,2]
[396611804,1765071040481,-500.0,9.041e-05,2]
[396611806,1765071040490,-500.0,9.041e-05,2]
[396611808,1765071040499,-581.51,9.041e-05,2]
[396611810,1765071040508,-669.02,9.041e-05,2]
[396611812,1765071040517,-902.82,9.041e-05,2]
[396611814,1765071040527,-500.0,9.041e-05,2]
[396611817,1765071040540,-500.0,9.041e-05,2]
[396611819,1765071040549,-500.0,9.041e-05,2]
[396611820,1765071040558,-500.0,9.041e-05,2]
[396611822,1765071040567,-317.84124266,9.041e-05,2]
[396611823,1765071040576,-736.64,9.041e-05,2]
[396611824,1765071040585,-500.0,9.041e-05,2]
[396611825,1765071040595,-500.0,9.041e-05,2]
[396611826,1765071040604,-500.0,9.041e-05,2]
[396611827,1765071040613,-500.0,9.041e-05,2]
[396611828,1765071040623,-500.0,9.041e-05,2]
[396611829,1765071040632,-762.91036247,9.045e-05,2]
[396611830,1765071040642,-500.0,9.079e-05,2]
[396611831,1765071040651,-151.0,9.079e-05,2]
[396611832,1765071040660,-151.0,9.079e-05,2]
[396611833,1765071040669,-500.0,9.079e-05,2]
[396611834,1765071040678,-500.0,9.079e-05,2]
[396611835,1765071040687,-401.42,9.167e-05,2]
[396611836,1765071040696,-500.0,9.216e-05,2]
[396611837,1765071040705,-237.75767703,9.216e-05,2]
[396611838,1765071040714,-500.0,9.216e-05,2]
[396611839,1765071040723,-500.0,9.216e-05,2]
[396611840,1765071040736,-2398.4119403,9.249e-05,2]
[396611841,1765071040753,-399.25119403,9.279e-05,2]
[396611842,1765071040762,-160.0,9.279e-05,2]
[396611843,1765071040771,-864.0,9.279e-05,2]
[396611844,1765071040780,-859.76,9.315e-05,2]
[396611845,1765071040790,-1046.23,9.315e-05,2]
[396611846,1765071040800,-935.39,9.315e-05,2]
[396611847,1765071040809,-500.0,9.315e-05,2]
[396611848,1765071040822,-581.51,9.315e-05,2]
[396611849,1765071040837,-669.02,9.315e-05,2]
[396611850,1765071040846,-902.82,9.315e-05,2]
[396611851,1765071040855,-500.0,9.315e-05,2]
[396611852,1765071040864,-500.0,9.315e-05,2]
[396611854,1765071040874,-500.68617477,9.315e-05,2]
[396611856,1765071040883,-500.0,9.315e-05,2]
[396611858,1765071040892,-736.64,9.315e-05,2]
[396611861,1765071040902,-500.0,9.315e-05,2]
[396611864,1765071040911,-500.0,9.315e-05,2]
[396611867,1765071040920,-500.0,9.315e-05,2]
[396611870,1765071040929,-500.0,9.315e-05,2]
[396611873,1765071040939,-500.0,9.315e-05,2]
[396611876,1765071040948,-500.0,9.353e-05,2]
[396611879,1765071040957,-500.0,9.353e-05,2]
[396611882,1765071040966,-604.0,9.353e-05,2]
[396611885,1765071040975,-500.0,9.49e-05,2]
[396611887,1765071040984,-500.0,9.49e-05,2]
[396611889,1765071040993,-762.91036247,9.53e-05,2]
[396611891,1765071041002,-481.71,9.533e-05,2]
[396611893,1765071041011,-859.76,9.589e-05,2]
[396611895,1765071041021,-1046.23,9.589e-05,2]
[396611897,1765071041032,-935.39,9.589e-05,2]
[396611899,1765071041041,-500.0,9.589e-05,2]
[396611901,1765071041050,-581.51,9.589e-05,2]
[396611903,1765071041059,-669.02,9.589e-05,2]
[396611905,1765071041067,-902.82,9.589e-05,2]
[396611906,1765071041076,-500.0,9.589e-05,2]
[396611908,1765071041085,-500.0,9.589e-05,2]
[396611910,1765071041095,-500.0,9.589e-05,2]
[396611912,1765071041104,-736.64,9.589e-05,2]
[396611914,1765071041113,-500.0,9.589e-05,2]
[396611916,1765071041122,-500.0,9.589e-05,2]
[396611918,1765071041131,-500.0,9.589e-05,2]
[396611920,1765071041140,-516.09495146,9.589e-05,2]
[396611922,1765071041150,-500.0,9.589e-05,2]
[396611924,1765071041159,-500.0,9.627e-05,2]
[396611926,1765071041168,-500.0,9.627e-05,2]
[396611928,1765071041177,-362.3297984,9.701e-05,2]
[396611930,1765071041186,-1310.8577051,9.76e-05,2]
[396611932,1765071041195,-364.63511245,9.764e-05,2]
[396611934,1765071041204,-500.0,9.764e-05,2]
[396611936,1765071041213,-2487.15318209,9.797e-05,2]
[396611938,1765071041222,-154.0,9.8e-05,2]
[396611940,1765071041231,-154.0,9.8e-05,2]
[396611942,1765071041240,-154.0,9.8e-05,2]
[396611944,1765071041249,-154.0,9.8e-05,2]
[396611946,1765071041258,-3873.59041771,9.804e-05,2]
[396611948,1765071041268,-4732.9439969,9.842e-05,2]
[396611950,1765071041277,-859.76,9.863e-05,2]
[396611952,1765071041286,-1046.23,9.863e-05,2]
[396611954,1765071041294,-935.39,9.863e-05,2]
[396611956,1765071041303,-500.0,9.863e-05,2]
[396611957,1765071041312,-581.51,9.863e-05,2]
[396611959,1765071041321,-669.02,9.863e-05,2]
[396611961,1765071041331,-902.82,9.863e-05,2]
[396611963,1765071041340,-500.0,9.863e-05,2]
[396611965,1765071041349,-500.0,9.863e-05,2]
[396611967,1765071041358,-500.0,9.863e-05,2]
[396611969,1765071041368,-736.64,9.863e-05,2]
[396611971,1765071041378,-500.0,9.863e-05,2]
[396611973,1765071041388,-500.0,9.863e-05,2]
[396611975,1765071041397,-500.0,9.863e-05,2]
[396611977,1765071041407,-500.0,9.863e-05,2]
[396611979,1765071041417,-301.9689207,9.863e-05,2]
[396611981,1765071041426,-301.9689207,9.863e-05,2]
[396611983,1765071041435,-301.9689207,9.863e-05,2]
[396611985,1765071041444,-165.2272366,9.863e-05,2]
[396611987,1765071041453,-165.2272366,9.863e-05,2]
[396611989,1765071041463,-168.3462905,9.863e-05,2]
[396611991,1765071041472,-391.0305447,9.863e-05,2]
[396611993,1765071041481,-823.0,9.873e-05,2]
[396611995,1765071041490,-561.99,9.9e-05,2]
[396611997,1765071041499,-500.0,9.901e-05,2]
[396611999,1765071041508,-178.11,0.0001,2]
[396612001,1765071041517,-178.11,0.0001,2]
[396612003,1765071041527,-741.91134357,0.0001,2]
[396612005,1765071041536,-158.0,0.0001,2]
[396612007,1765071041546,-158.0,0.0001,2]
[396612009,1765071041554,-501.14465736,0.0001,2]
[396612011,1765071041564,-2170.8555965,0.0001,2]
[396612013,1765071041573,-221.45294546,0.0001,2]
[396612015,1765071041582,-151.0,0.0001,2]
[396612017,1765071041591,-151.0,0.0001,2]
[396612019,1765071041600,-151.0,0.0001,2]
[396612021,1765071041609,-151.0,0.0001,2]
[396612023,1765071041618,-151.0,0.0001,2]
[396612024,1765071041628,-151.0,0.0001,2]
[396612026,1765071041638,-151.0,0.0001,2]
[396612028,1765071041647,-151.0,0.0001,2]
[396612030,1765071041656,-151.0,0.0001,2]
[396612032,1765071041665,-151.0,0.0001,2]
[396612034,1765071041675,-1128.33,0.0001,2]
[396612036,1765071041684,-151.0,0.0001,2]
[396612038,1765071041693,-151.0,0.0001,2]
[396612040,1765071041702,-151.0,0.0001,2]
[396612042,1765071041711,-151.0,0.0001,2]
[396612044,1765071041720,-151.0,0.0001,2]
[396612046,1765071041729,-151.0,0.0001,2]
[396612048,1765071041740,-151.0,0.0001,2]
[396612050,1765071041750,-151.0,0.0001,2]
[396612052,1765071041760,-151.0,0.0001,2]
[396612054,1765071041770,-151.0,0.0001,2]
[396612056,1765071041782,-152.90054112,0.0001,2]
[396612058,1765071041791,-762.91036247,0.00010015,2]
[396612060,1765071041800,-500.0,0.00010038,2]
[396612062,1765071041809,-1128.33,0.000101,2]
[396612064,1765071041820,-859.76,0.00010136,2]
[396612066,1765071041830,-1046.23,0.00010136,2]
[396612068,1765071041839,-935.39,0.00010136,2]
[396612070,1765071041849,-500.0,0.00010136,2]
[396612072,1765071041857,-581.51,0.00010136,2]
[396612074,1765071041867,-669.02,0.00010136,2]
[396612076,1765071041878,-902.82,0.00010136,2]
[396612078,1765071041887,-500.0,0.00010136,2]
[396612080,1765071041897,-500.0,0.00010136,2]
[396612082,1765071041906,-153.3784594,0.00010136,2]
[396612084,1765071041916,-736.64,0.00010136,2]
[396612086,1765071041926,-500.0,0.00010136,2]
[396612088,1765071041936,-500.0,0.00010136,2]
[396612090,1765071041945,-500.0,0.00010136,2]
[396612092,1765071041955,-500.0,0.00010137,2]
[396612094,1765071041964,-1056.062552,0.00010143,2]
[396612096,1765071041973,-500.0,0.00010175,2]
[396612098,1765071041983,-1128.33,0.000102,2]
[396612100,1765071041992,-1128.33,0.000102,2]
[396612102,1765071042001,-1000.0,0.00010206,2]
[396612104,1765071042010,-642.28,0.00010267,2]
[396612106,1765071042020,-1128.33,0.000103,2]
[396612108,1765071042029,-500.0,0.00010312,2]
[396612110,1765071042039,-2579.17784983,0.00010345,2]
[396612112,1765071042049,-836.2561372,0.00010359,2]
[396612113,1765071042058,-738.17826899,0.000104,2]
[396612114,1765071042074,-390.15173101,0.000104,2]
[396612115,1765071042083,-859.76,0.0001041,2]
[396612116,1765071042092,-1046.23,0.0001041,2]
[396612117,1765071042102,-935.39,0.0001041,2]
[396612118,1765071042114,-487.2326588,0.0001041,2]
[396612119,1765071042127,-12.7673412,0.0001041,2]
[396612120,1765071042135,-581.51,0.0001041,2]
[396612121,1765071042144,-669.02,0.0001041,2]
[396612122,1765071042153,-902.82,0.0001041,2]
[396612123,1765071042162,-500.0,0.0001041,2]
[396612124,1765071042377,-500.0,0.0001041,2]
[396612125,1765071042388,-736.64,0.0001041,2]
[396612126,1765071042396,-500.0,0.0001041,2]
[396612127,1765071042406,-500.0,0.0001041,2]
[396612129,1765071042415,-500.0,0.0001041,2]
[396612130,1765071042427,-500.0,0.00010411,2]
[396612132,1765071042437,-53.7302603,0.00010449,2]
[396612176,1765071042844,-446.2697397,0.00010449,2]
[396612179,1765071042854,-762.91036247,0.00010499,2]
[396612181,1765071042864,-2326.31536236,0.000105,2]
[396612183,1765071042876,-27338.57099753,0.000105,2]
[396612184,1765071042885,-1128.33,0.000105,2]
[396612186,1765071042895,-151.0,0.00010548,2]
[396612188,1765071042904,-500.0,0.00010586,2]
[396612190,1765071042914,-1128.33,0.000106,2]
[396612192,1765071042923,-722.56,0.00010633,2]
[396612194,1765071042932,-859.76,0.00010684,2]
[396612196,1765071042943,-1046.23,0.00010684,2]
[396612198,1765071042952,-935.39,0.00010684,2]
[396612200,1765071042961,-500.0,0.00010684,2]
[396612202,1765071042971,-581.51,0.00010684,2]
[396612204,1765071042980,-669.02,0.00010684,2]
[396612206,1765071042989,-336.11491112,0.00010684,2]
[396612208,1765071042999,-500.0,0.00010684,2]
[396612210,1765071043009,-736.64,0.00010684,2]
[396612212,1765071043018,-500.0,0.00010684,2]
[396612214,1765071043027,-500.0,0.00010684,2]
[396612216,1765071043037,-150.08175137,0.00010684,2]
[396612218,1765071043047,-500.0,0.00010685,2]
[396612220,1765071043057,-165.2272366,0.00010685,2]
[396612221,1765071043066,-165.2272366,0.00010685,2]
[396612222,1765071043075,-596.7461344,0.00010685,2]
[396612223,1765071043084,-411.0001508,0.00010685,2]
[396612224,1765071043092,-596.7461344,0.00010685,2]
[396612225,1765071043101,-596.7461344,0.00010685,2]
[396612226,1765071043110,-596.7461344,0.00010685,2]
[396612227,1765071043119,-165.2272366,0.00010685,2]
[396612229,1765071043129,-596.7461344,0.00010685,2]
[396612231,1765071043138,-165.2272366,0.00010685,2]